bitfinex/quotes_SOLUSD_20251009
["timestamp","ask_amount","ask_price","bid_price","bid_amount"]
[1759976021832,1.9985884,227.33,227.29,4.39966562]
[1759976022049,1.3085884,227.32,227.25,11.00110011]
[1759976022238,1.3085884,227.32,227.25,11.67110011]
[1759976022446,1.3085884,227.32,227.26,0.67]
[1759976024132,1.3085884,227.32,227.27,4.4000528]
[1759976024347,1.9885884,227.31,227.27,4.4000528]
[1759976024648,1.3085884,227.3,227.27,4.4000528]
[1759976024850,4.39870576,227.34,227.28,0.66]
[1759976025050,1.3085884,227.32,227.28,0.66]
[1759976025448,1.3085884,227.33,227.28,0.66]
[1759976025831,1.9885884,227.33,227.28,0.66]
[1759976026156,1.3085884,227.32,227.27,36.2001848]
[1759976026343,134.98,227.38,227.28,0.66]
[1759976026543,135.6085884,227.38,227.28,32.18]
[1759976026749,135.6085884,227.38,227.29,0.66]
[1759976027544,1.3085884,227.37,227.29,0.66]
[1759976028453,1.3085884,227.37,227.3,15.39815221]
[1759976028757,1.3085884,227.37,227.31,0.66]
[1759976029137,135.6085884,227.38,227.31,0.66]
[1759976029547,0.68,227.39,227.32,15.39679746]
[1759976029756,0.68,227.39,227.33,0.66]
[1759976030954,0.68,227.39,227.34,4.39869798]
[1759976031158,0.68,227.39,227.34,5.05869798]
[1759976031335,0.68,227.41,227.34,15.39544294]
[1759976031544,1.3085884,227.41,227.35,0.66]
[1759976031757,31.54,227.42,227.35,0.66]
[1759976032138,32.8485884,227.42,227.35,0.66]
[1759976032561,32.8485884,227.42,227.34,4.39869798]
[1759976032562,1.3085884,227.38,227.34,4.39869798]
[1759976032755,1.3085884,227.36,227.34,4.39869798]
[1759976034052,1.3085884,227.37,227.34,4.39869798]
[1759976034247,1.3085884,227.37,227.32,15.39679746]
[1759976034646,1.3085884,227.37,227.32,16.05679746]
[1759976034856,1.3085884,227.37,227.32,15.39679746]
[1759976035172,1.3085884,227.37,227.33,0.66]
[1759976036568,0.68,227.39,227.34,4.39869798]
[1759976036739,1.3085884,227.37,227.34,4.39869798]
[1759976036940,1.3085884,227.38,227.34,4.39869798]
[1759976037342,1.9885884,227.38,227.34,4.39869798]
[1759976038960,1.3085884,227.38,227.32,10.99771247]
[1759976039162,1.3085884,227.38,227.32,11.65771247]
[1759976040150,1.9885884,227.38,227.32,16.05679746]
[1759976040568,1.3085884,227.38,227.33,0.66]
[1759976040764,1.3085884,227.38,227.34,0.66]
[1759976041465,0.68,227.44,227.35,21.46]
[1759976041651,1.3085884,227.43,227.36,0.66]
[1759976042456,1.3085884,227.43,227.37,4.3981176]
[1759976042651,1.3085884,227.43,227.37,5.0581176]
[1759976046574,1.3085884,227.42,227.37,5.0581176]
[1759976046876,1.3085884,227.42,227.38,0.7]
[1759976047657,1.3085884,227.42,227.38,5.09781051]
[1759976048190,1.3085884,227.42,227.39,0.7]
[1759976049771,1.3085884,227.42,227.36,15.39406771]
[1759976049961,1.3085884,227.42,227.4,0.7]
[1759976050162,1.3085884,227.42,227.38,0.7]
[1759976050366,1.3085884,227.42,227.39,0.7]
[1759976052464,1.3085884,227.42,227.39,5.09759633]
[1759976054876,0.2,227.46,227.4,0.7]
[1759976057179,0.2,227.46,227.41,15.39070401]
[1759976057361,0.2,227.46,227.42,0.7]
[1759976057569,0.2,227.46,227.43,0.7]
[1759976057775,1.5085884,227.46,227.43,0.7]
[1759976058282,1.5085884,227.46,227.41,46.87070401]
[1759976058480,1.5085884,227.46,227.44,0.7]
[1759976058875,1.5085884,227.46,227.45,4.39657067]
[1759976059084,0.2,227.46,227.45,4.39657067]
[1759976060077,0.2,227.46,227.44,4.39676398]
[1759976060282,0.2,227.46,227.44,5.09676398]
[1759976061081,0.2,227.46,227.44,4.39676398]
[1759976061285,0.2,227.46,227.44,5.09676398]
[1759976065285,0.2,227.46,227.45,0.7]
[1759976066189,0.2,227.46,227.45,5.09657067]
[1759976068096,0.2,227.46,227.45,36.55657067]
[1759976068693,0.2,227.46,227.45,5.09657067]
[1759976068900,1.5085884,227.46,227.43,20.8]
[1759976069072,1.5085884,227.46,227.41,5.097344]
[1759976069277,1.5085884,227.46,227.43,4.3969573]
[1759976069492,1.5085884,227.46,227.43,25.8969573]
[1759976070608,1.5085884,227.46,227.43,5.0969573]
[1759976071408,1.5085884,227.46,227.41,15.39070401]
[1759976071574,1.5085884,227.46,227.43,0.7]
[1759976073200,0.2,227.46,227.44,31.46]
[1759976073395,0.2,227.46,227.45,0.7]
[1759976073601,0.2,227.46,227.45,5.09657067]
[1759976076780,0.2,227.46,227.45,36.55657067]
[1759976077789,0.2,227.46,227.45,5.09657067]
[1759976077990,0.2,227.46,227.45,36.55657067]
[1759976079985,0.2,227.46,227.45,5.09657067]
[1759976080186,0.2,227.46,227.45,36.53657067]
[1759976080382,0.2,227.46,227.45,5.09657067]
[1759976080587,0.2,227.46,227.45,36.53657067]
[1759976080806,0.62,227.52,227.45,47.52799735]
[1759976080995,0.62,227.52,227.46,0.69]
[1759976081511,0.62,227.52,227.47,4.39618411]
[1759976081713,1.3085884,227.49,227.47,4.39618411]
[1759976082621,145.28524189,227.58,227.47,15.38664439]
[1759976082920,1.3085884,227.53,227.48,0.69]
[1759976083086,2.0085884,227.53,227.48,0.69]
[1759976083285,2.0085884,227.53,227.47,15.38664439]
[1759976083286,0.7,227.52,227.47,15.38664439]
[1759976083504,0.7,227.52,227.47,16.04664439]
[1759976085016,2.04100349,227.53,227.47,16.04664439]
[1759976085322,2.74100349,227.53,227.47,16.04664439]
[1759976085706,2.04100349,227.48,227.47,4.39618411]
[1759976086006,2.04100349,227.48,227.47,25.19618411]
[1759976086198,2.04100349,227.49,227.47,25.19618411]
[1759976091419,2.74100349,227.48,227.42,15.93362585]
[1759976091607,2.04100349,227.47,227.43,31.42]
[1759976091806,2.04100349,227.47,227.43,32.08]
[1759976092217,2.04100349,227.47,227.44,0.66]
[1759976092529,2.04100349,227.47,227.45,0.66]
[1759976092902,2.04100349,227.47,227.46,4.39637738]
[1759976093232,2.04100349,227.48,227.46,4.39637738]
[1759976093799,2.04100349,227.47,227.46,4.39637738]
[1759976094002,2.04100349,227.47,227.45,0.66]
[1759976095025,2.04100349,227.48,227.46,4.39637738]
[1759976095323,2.74100349,227.5,227.46,4.39637738]
[1759976095508,2.04100349,227.5,227.46,5.05637738]
[1759976095707,2.04100349,227.5,227.47,0.66]
[1759976095918,0.7,227.49,227.46,4.39637738]
[1759976096224,2.74100349,227.49,227.46,4.39637738]
[1759976096401,2.04100349,227.49,227.46,5.05637738]
[1759976096935,2.04100349,227.47,227.42,0.66]
[1759976097137,2.04100349,227.44,227.43,0.66]
[1759976097313,2.04100349,227.44,227.42,4.39711912]
[1759976098222,2.04100349,227.44,227.42,5.05711912]
[1759976098412,2.04100349,227.44,227.43,0.66]
[1759976098809,2.04100349,227.44,227.43,5.0569573]
[1759976099628,4.39601205,227.48,227.43,5.0569573]
[1759976099824,2.04100349,227.44,227.43,5.0569573]
[1759976100436,2.04100349,227.44,227.42,4.39715064]
[1759976100622,2.04100349,227.44,227.42,5.05715064]
[1759976100827,2.04100349,227.43,227.41,34.02793074]
[1759976101040,2.04100349,227.42,227.38,31.42]
[1759976101352,2.04100349,227.41,227.39,0.66]
[1759976102424,2.04100349,227.42,227.39,4.39773077]
[1759976102618,2.04100349,227.43,227.4,0.66]
[1759976102920,52.96016118,227.57,227.4,0.66]
[1759976102921,135.0,227.54,227.43,10.87647521]
[1759976103114,2.04100349,227.51,227.44,32.08]
[1759976103311,2.04100349,227.51,227.45,0.66]
[1759976103537,2.04100349,227.52,227.45,0.66]
[1759976104230,2.04100349,227.47,227.42,21.46]
[1759976104537,2.04100349,227.46,227.43,32.08]
[1759976105040,2.04100349,227.47,227.43,32.08]
[1759976105242,2.04100349,227.47,227.43,36.4769573]
[1759976105428,2.04100349,227.5,227.44,0.66]
[1759976105945,2.04100349,227.51,227.44,0.66]
[1759976106244,2.04100349,227.51,227.46,20.8]
[1759976106544,2.04100349,227.52,227.47,32.14]
[1759976106733,2.04100349,227.5,227.46,20.8]
[1759976106925,4.39444542,227.56,227.47,31.42]
[1759976106926,2.04100349,227.48,227.47,31.42]
[1759976107125,2.04100349,227.51,227.47,32.14]
[1759976107540,2.04100349,227.51,227.48,4.39599085]
[1759976108443,2.04100349,227.51,227.48,5.11599085]
[1759976109620,2.04100349,227.52,227.48,5.11599085]
[1759976110545,2.04100349,227.52,227.49,0.72]
[1759976110842,2.04100349,227.54,227.5,0.72]
[1759976111229,2.04100349,227.54,227.51,0.72]
[1759976111628,2.04100349,227.54,227.49,0.72]
[1759976111950,2.04100349,227.58,227.5,32.12]
[1759976112130,2.04100349,227.57,227.51,0.72]
[1759976112842,2.04100349,227.57,227.52,4.395218]
[1759976113046,2.04100349,227.57,227.52,5.115218]
[1759976113942,2.04100349,227.57,227.52,0.72]
[1759976114758,2.04100349,227.55,227.51,4.39541119]
[1759976114931,2.04100349,227.55,227.52,0.72]
[1759976116257,2.04100349,227.55,227.53,4.39502483]
[1759976117347,7.97109793,227.59,227.54,0.72]
[1759976117552,2.04100349,227.58,227.54,0.72]
[1759976117747,2.04100349,227.55,227.51,4.39528475]
[1759976118058,2.04100349,227.54,227.51,35.79528475]
[1759976118434,2.04100349,227.54,227.51,36.51528475]
[1759976118630,0.66,227.57,227.51,36.51528475]
[1759976118631,2.04100349,227.55,227.51,36.51528475]
[1759976119057,2.04100349,227.55,227.52,0.72]
[1759976119350,32.28,227.61,227.53,16.1025332]
[1759976119530,2.04100349,227.58,227.54,0.72]
[1759976119734,2.04100349,227.57,227.53,4.39497113]
[1759976119929,2.04100349,227.55,227.53,56.57497113]
[1759976120840,2.04100349,227.55,227.53,57.29497113]
[1759976121254,2.04100349,227.57,227.53,56.57497113]
[1759976121462,2.04100349,227.57,227.54,0.72]
[1759976122259,2.04100349,227.57,227.53,56.57497113]
[1759976122562,2.04100349,227.56,227.53,25.91497113]
[1759976122945,2.04100349,227.54,227.49,0.72]
[1759976123269,2.04100349,227.52,227.45,20.8]
[1759976123561,2.04100349,227.52,227.49,0.72]
[1759976124262,2.04100349,227.51,227.5,0.72]
[1759976124756,2.04100349,227.51,227.48,0.72]
[1759976125065,2.04100349,227.49,227.47,20.8]
[1759976125357,2.70100349,227.48,227.42,36.49715064]
[1759976125665,2.04100349,227.44,227.42,5.11715064]
[1759976126161,2.04100349,227.44,227.43,5.1169573]
[1759976128065,2.04100349,227.44,227.43,4.3969573]
[1759976128458,2.04100349,227.44,227.42,15.39002725]
[1759976128654,2.04100349,227.44,227.42,16.11002725]
[1759976128848,2.04100349,227.43,227.42,4.39715064]
[1759976129061,2.04100349,227.43,227.42,5.11715064]
[1759976129262,2.04100349,227.43,227.39,13.0812029]
[1759976129440,2.04100349,227.4,227.38,0.72]
[1759976129870,2.04100349,227.39,227.38,5.11792417]
[1759976130044,2.04100349,227.39,227.38,4.39792417]
[1759976130242,2.04100349,227.39,227.36,5.11823684]
[1759976130443,2.04100349,227.38,227.36,36.49823684]
[1759976131152,2.04100349,227.39,227.37,0.72]
[1759976132050,2.04100349,227.39,227.37,5.11808847]
[1759976132250,2.04100349,227.39,227.37,4.39808847]
[1759976132466,2.04100349,227.39,227.35,36.49832026]
[1759976132668,2.04100349,227.39,227.36,0.72]
[1759976132970,2.04100349,227.39,227.36,13.73696683]
[1759976133686,2.04100349,227.38,227.35,4.39832026]
[1759976133973,2.04100349,227.38,227.3,10.99820934]
[1759976133974,2.04100349,227.36,227.34,20.8]
[1759976134179,2.04100349,227.35,227.34,25.19869798]
[1759976134975,2.04100349,227.35,227.32,4.39908499]
[1759976135158,5.05775182,227.39,227.3,13.14840321]
[1759976135159,2.04100349,227.33,227.3,13.14840321]
[1759976135356,2.04100349,227.31,227.29,31.38]
[1759976135561,2.04100349,227.3,227.29,32.07]
[1759976135769,2.04100349,227.31,227.29,32.07]
[1759976136173,4.39782977,227.39,227.3,4.39947206]
[1759976136373,2.04100349,227.34,227.31,0.69]
[1759976136682,2.04100349,227.33,227.31,0.69]
[1759976137762,2.04100349,227.38,227.32,21.49]
[1759976137959,2.04100349,227.39,227.33,0.69]
[1759976138178,2.04100349,227.39,227.34,4.39869798]
[1759976138376,2.04100349,227.38,227.35,0.69]
[1759976138573,2.04100349,227.37,227.35,0.69]
[1759976139181,2.04100349,227.37,227.34,4.39869798]
[1759976139377,2.04100349,227.37,227.34,5.08869798]
[1759976140670,2.04100349,227.38,227.35,0.69]
[1759976142185,2.04100349,227.38,227.36,4.39831104]
[1759976143786,2.04100349,227.37,227.33,0.69]
[1759976143991,2.04100349,227.34,227.33,4.39888484]
[1759976144376,2.04100349,227.34,227.31,4.39909566]
[1759976144681,2.04100349,227.32,227.31,4.39909566]
[1759976145188,2.04100349,227.33,227.31,4.39909566]
[1759976145893,1.30847731,227.33,227.31,4.39909566]
[1759976146386,1.30847731,227.33,227.3,4.39947206]
[1759976146569,1.30847731,227.33,227.3,5.08947206]
[1759976147288,1.30847731,227.33,227.3,4.39947206]
[1759976147488,0.72,227.34,227.3,4.39947206]
[1759976147694,1.30847731,227.33,227.3,4.39947206]
[1759976148274,1.30847731,227.32,227.29,4.39966562]
[1759976148595,1.30847731,227.34,227.3,0.69]
[1759976149081,0.72,227.36,227.3,0.69]
[1759976149265,1.30847731,227.34,227.3,0.69]
[1759976149588,1.30847731,227.34,227.31,4.39927851]
[1759976149790,1.30847731,227.34,227.31,5.08927851]
[1759976150993,1.30847731,227.35,227.32,0.69]
[1759976151191,1.30847731,227.35,227.31,4.39927851]
[1759976151395,1.30847731,227.35,227.31,5.08927851]
[1759976151579,1.30847731,227.35,227.29,15.39882968]
[1759976151779,1.30847731,227.35,227.29,28.68373521]
[1759976152103,25.19795034,227.42,227.3,0.69]
[1759976152275,134.3,227.52,227.38,20.8]
[1759976152276,10.98813907,227.52,227.38,20.8]
[1759976152597,1.30847731,227.45,227.39,0.69]
[1759976152788,20.8,227.5,227.39,0.69]
[1759976152789,1.30847731,227.46,227.39,0.69]
[1759976153783,1.30847731,227.46,227.4,4.39753737]
[1759976154098,1.30847731,227.45,227.4,5.08753737]
[1759976154288,1.30847731,227.45,227.41,0.69]
[1759976154887,0.72,227.47,227.41,0.69]
[1759976155199,1.30847731,227.45,227.41,0.69]
[1759976155576,1.30847731,227.45,227.42,4.39715064]
[1759976157493,0.72,227.52,227.43,32.05]
[1759976157684,0.72,227.55,227.44,11.56647521]
[1759976157885,1.30847731,227.54,227.45,0.69]
[1759976158078,1.30847731,227.55,227.47,20.8]
[1759976158393,1.30847731,227.55,227.48,32.05]
[1759976158896,1.30847731,227.55,227.49,0.69]
[1759976159396,1.30847731,227.55,227.45,4.39657067]
[1759976159397,1.30847731,227.5,227.45,4.39657067]
[1759976159574,1.30847731,227.48,227.45,5.08657067]
[1759976159991,0.72,227.52,227.45,5.08657067]
[1759976160402,1.30847731,227.5,227.46,0.69]
[1759976160600,1.30847731,227.5,227.47,0.69]
[1759976161588,1.30847731,227.5,227.47,5.08602045]
[1759976161988,0.72,227.54,227.48,0.69]
[1759976162189,1.30847731,227.5,227.47,4.39602045]
[1759976162391,1.30847731,227.5,227.47,5.08602045]
[1759976162590,1.30847731,227.5,227.47,4.39602045]
[1759976162787,1.30847731,227.5,227.47,5.08602045]
[1759976163303,1.30847731,227.5,227.48,0.69]
[1759976163495,1.30847731,227.51,227.48,0.69]
[1759976163807,1.30847731,227.51,227.49,4.39579761]
[1759976164305,1.30847731,227.53,227.5,0.69]
[1759976164504,1.30847731,227.53,227.49,4.39579761]
[1759976164505,1.30847731,227.55,227.51,0.69]
[1759976164697,134.3,227.58,227.51,0.69]
[1759976164698,1.30847731,227.56,227.51,0.69]
[1759976165708,1.30847731,227.57,227.52,4.395218]
[1759976165992,1.30847731,227.57,227.53,0.68]
[1759976166184,1.30847731,227.56,227.54,0.68]
[1759976166698,2.01847731,227.55,227.52,4.395218]
[1759976166888,1.30847731,227.53,227.52,4.395218]
[1759976167081,2.01847731,227.53,227.39,3.57911467]
[1759976167278,1.30847731,227.48,227.4,11.55647521]
[1759976167483,1.30847731,227.47,227.41,0.68]
[1759976167707,1.30847731,227.47,227.46,20.8]
[1759976167918,2.01847731,227.47,227.42,5.07715064]
[1759976168104,4.39525566,227.52,227.39,0.68]
[1759976168105,1.30847731,227.43,227.39,0.68]
[1759976168403,1.30847731,227.4,227.37,5.07798457]
[1759976168622,1.30847731,227.39,227.37,4.39798457]
[1759976169115,0.71,227.43,227.37,4.39798457]
[1759976169116,1.30847731,227.38,227.37,4.39798457]
[1759976169798,1.30847731,227.38,227.36,4.39831104]
[1759976170321,1.30847731,227.39,227.36,4.39831104]
[1759976170487,1.30847731,227.39,227.36,5.07831104]
[1759976170889,1.30847731,227.37,227.34,20.8]
[1759976171088,1.30847731,227.37,227.3,10.87647521]
[1759976171089,1.30847731,227.35,227.29,10.99886029]
[1759976171297,1.30847731,227.35,227.19,0.1]
[1759976171298,1.30847731,227.3,227.26,5.08024641]
[1759976171484,1.30847731,227.3,227.27,0.68]
[1759976171682,1.30847731,227.31,227.28,0.68]
[1759976171885,3.47011058,227.32,227.29,5.07947623]
[1759976172091,3.47011058,227.32,227.29,4.39947623]
[1759976172308,3.47011058,227.32,227.3,0.68]
[1759976172897,3.47011058,227.32,227.29,4.39947623]
[1759976173102,3.47011058,227.32,227.29,5.07947623]
[1759976173309,3.47011058,227.33,227.29,5.07947623]
[1759976173697,3.47011058,227.32,227.29,5.07947623]
[1759976173902,3.47011058,227.31,227.29,5.07947623]
[1759976174914,3.47011058,227.32,227.29,5.07947623]
[1759976178700,3.47011058,227.33,227.29,5.07947623]
[1759976179106,3.47011058,227.33,227.25,31.44]
[1759976179107,32.05,227.32,227.25,0.1]
[1759976179303,3.47011058,227.26,227.25,0.1]
[1759976180108,4.18011058,227.26,227.25,0.1]
[1759976182407,3.47011058,227.26,227.25,0.1]
[1759976182723,4.18011058,227.26,227.25,0.1]
[1759976182905,8.58035699,227.26,227.25,0.1]
[1759976186215,22.92694278,227.26,227.25,0.1]
[1759976186515,20.8,227.23,227.2,0.1]
[1759976186706,3.47011058,227.21,227.2,0.1]
[1759976186910,34.81011058,227.21,227.2,0.1]
[1759976187105,35.52011058,227.21,227.2,0.1]
[1759976187508,169.82011058,227.21,227.2,0.1]
[1759976188426,174.22132531,227.21,227.2,0.1]
[1759976189422,169.11011058,227.21,227.2,0.78]
[1759976189612,0.71,227.26,227.2,0.78]
[1759976189807,3.47011058,227.22,227.2,0.78]
[1759976190727,3.47011058,227.21,227.2,0.78]
[1759976191026,3.47011058,227.22,227.2,0.78]
[1759976191207,3.47011058,227.21,227.2,0.1]
[1759976193925,3.47011058,227.21,227.2,0.78]
[1759976194124,34.81011058,227.23,227.2,5.18140845]
[1759976194324,3.47011058,227.22,227.2,0.78]
[1759976194707,3.47011058,227.21,227.2,0.78]
[1759976196021,1.30988393,227.21,227.2,0.78]
[1759976196228,1.30988393,227.22,227.2,5.18138928]
[1759976196421,1.30988393,227.22,227.21,0.68]
[1759976196810,1.30988393,227.22,227.2,4.50138928]
[1759976197010,1.30988393,227.22,227.2,5.18138928]
[1759976197513,1.30988393,227.22,227.2,4.68138928]
[1759976197715,1.30988393,227.22,227.2,4.00138928]
[1759976197920,32.64988393,227.23,227.21,0.68]
[1759976198431,1.30988393,227.22,227.21,0.68]
[1759976200012,1.30988393,227.22,227.2,4.00138928]
[1759976200230,1.30988393,227.22,227.2,4.68138928]
[1759976201107,31.34,227.23,227.2,4.68138928]
[1759976201108,1.30988393,227.21,227.2,0.68]
[1759976202337,1.30988393,227.21,227.19,0.1]
[1759976202633,0.69,227.26,227.2,0.68]
[1759976202935,1.30988393,227.25,227.2,0.68]
[1759976203117,31.34,227.26,227.2,0.68]
[1759976203323,32.64988393,227.26,227.21,4.40121473]
[1759976203632,1.30988393,227.25,227.22,0.71]
[1759976203817,32.64988393,227.26,227.23,0.71]
[1759976204008,31.34,227.26,227.24,0.71]
[1759976204414,31.34,227.26,227.25,0.71]
[1759976204620,166.94988393,227.27,227.25,0.71]
[1759976204833,166.94988393,227.27,227.21,15.40425156]
[1759976205012,166.94988393,227.27,227.23,0.71]
[1759976205213,166.94988393,227.27,227.24,5.11053236]
[1759976205407,31.34,227.27,227.25,0.71]
[1759976205613,31.34,227.27,227.26,0.71]
[1759976206312,31.34,227.27,227.19,20.9]
[1759976206313,33.36988393,227.27,227.21,0.71]
[1759976206513,1.30988393,227.22,227.19,4.50158574]
[1759976206731,1.30988393,227.21,227.19,5.21158574]
[1759976207418,31.34,227.23,227.19,0.1]
[1759976207618,1.30988393,227.2,227.19,0.1]
[1759976207812,33.38708249,227.2,227.19,0.1]
[1759976208236,33.38708249,227.2,227.19,0.81]
[1759976208431,33.38708249,227.2,227.19,0.1]
[1759976209828,36.40869407,227.2,227.19,0.1]
[1759976211128,37.12869407,227.2,227.19,0.1]
[1759976211524,36.40869407,227.2,227.19,0.1]
[1759976215939,41.53010252,227.2,227.19,0.1]
[1759976216337,46.59879659,227.2,227.19,0.1]
[1759976217435,41.53010252,227.2,227.19,0.1]
[1759976218024,46.59879659,227.2,227.19,0.1]
[1759976218252,5.12140845,227.2,227.19,0.1]
[1759976218425,41.53010252,227.2,227.19,0.1]
[1759976218825,10.19010252,227.2,227.19,0.1]
[1759976219040,41.53010252,227.2,227.19,0.1]
[1759976219649,46.59879659,227.2,227.19,0.1]
[1759976220234,57.4752718,227.2,227.19,0.1]
[1759976222158,51.68657773,227.2,227.19,0.1]
[1759976222353,52.40657773,227.2,227.19,0.1]
[1759976222743,57.4752718,227.2,227.19,0.1]
[1759976224854,57.4752718,227.2,227.14,0.1]
[1759976224855,20.8,227.17,227.14,0.1]
[1759976225048,5.06869407,227.15,227.14,0.1]
[1759976225352,39.36722105,227.15,227.14,0.1]
[1759976225557,20.8,227.12,227.09,0.51]
[1759976225758,31.34,227.11,227.09,0.51]
[1759976225935,5.06869407,227.1,227.06,4.50411706]
[1759976226134,5.06869407,227.08,227.06,4.50411706]
[1759976226337,5.06869407,227.08,227.06,0.1]
[1759976226533,31.34,227.09,227.06,0.1]
[1759976226737,5.06869407,227.08,227.06,4.50408971]
[1759976227642,9.47242843,227.08,227.06,0.1]
[1759976228545,10.17242843,227.08,227.06,0.1]
[1759976229438,30.97242843,227.08,227.06,0.1]
[1759976229645,41.84890364,227.08,227.06,0.1]
[1759976229840,20.08178807,227.08,227.06,0.1]
[1759976230255,31.67647521,227.07,227.02,0.1]
[1759976230442,33.72726446,227.03,227.02,0.1]
[1759976230649,54.19078925,227.03,227.02,0.1]
[1759976230962,58.59549347,227.03,227.02,0.1]
[1759976231378,2.05078925,227.03,227.02,0.1]
[1759976231577,54.19078925,227.03,227.02,0.1]
[1759976231745,58.59549347,227.03,227.02,0.1]
[1759976233569,33.39078925,227.03,227.02,0.1]
[1759976233944,2.05078925,227.03,227.02,0.76]
[1759976234162,31.34,227.03,227.02,0.76]
[1759976234660,33.39078925,227.03,227.02,0.76]
[1759976236179,4.40373934,227.08,227.02,5.16489824]
[1759976236473,2.05078925,227.06,227.03,0.66]
[1759976236660,31.34,227.06,227.03,0.66]
[1759976237568,2.05078925,227.05,227.03,5.06466306]
[1759976237755,2.05078925,227.05,227.04,0.66]
[1759976238161,33.39078925,227.06,227.04,0.66]
[1759976238653,33.39078925,227.06,227.05,0.66]
[1759976239989,31.34,227.06,227.05,5.06431622]
[1759976242157,33.39078925,227.06,227.05,0.66]
[1759976243574,136.35078925,227.1,227.05,5.06431622]
[1759976243876,31.34,227.09,227.05,5.06431622]
[1759976244076,31.34,227.09,227.06,0.66]
[1759976244266,31.34,227.09,227.07,0.66]
[1759976244452,31.34,227.09,227.08,0.66]
[1759976245977,33.39078925,227.09,227.08,0.66]
[1759976246591,33.39078925,227.09,227.06,0.66]
[1759976246875,2.05078925,227.08,227.07,0.66]
[1759976247084,33.39078925,227.09,227.07,0.66]
[1759976247285,31.34,227.09,227.07,0.66]
[1759976247604,33.39078925,227.09,227.07,0.66]
[1759976247899,33.39078925,227.09,227.08,0.66]
[1759976248094,33.39078925,227.09,227.06,0.66]
[1759976248408,33.39078925,227.09,227.07,0.66]
[1759976248707,33.39078925,227.09,227.08,0.66]
[1759976250108,31.34,227.09,227.08,0.66]
[1759976250280,18.85444938,227.19,227.08,0.66]
[1759976250281,0.7,227.17,227.08,0.66]
[1759976250612,2.05078925,227.12,227.09,4.40354044]
[1759976250897,33.39078925,227.12,227.1,0.66]
[1759976251289,31.34,227.12,227.1,0.66]
[1759976251489,33.39078925,227.12,227.1,0.66]
[1759976252923,7.97797417,227.19,227.11,5.06315265]
[1759976253096,31.34,227.18,227.14,20.8]
[1759976253282,31.34,227.18,227.15,0.66]
[1759976253486,39.31797417,227.19,227.15,0.66]
[1759976253887,7.97797417,227.19,227.15,0.66]
[1759976254117,7.97797417,227.19,227.16,0.66]
[1759976254320,2.05078925,227.17,227.11,16.07103429]
[1759976254630,2.05078925,227.14,227.11,16.07103429]
[1759976254910,2.05078925,227.14,227.12,0.66]
[1759976255298,2.05078925,227.13,227.09,4.40354044]
[1759976255487,2.05078925,227.1,227.09,4.40354044]
[1759976255683,2.05078925,227.11,227.09,4.40354044]
[1759976256625,31.32,227.12,227.1,0.68]
[1759976256917,33.37078925,227.14,227.11,4.40315265]
[1759976257110,2.05078925,227.13,227.11,4.40315265]
[1759976257894,33.37078925,227.14,227.11,0.68]
[1759976258207,2.05078925,227.13,227.11,0.68]
[1759976260111,31.32,227.14,227.11,0.68]
[1759976260424,2.05078925,227.15,227.12,0.68]
[1759976260595,33.37078925,227.16,227.13,0.68]
[1759976260785,2.05078925,227.15,227.13,0.68]
[1759976260990,31.32,227.16,227.11,15.41102096]
[1759976261295,31.32,227.16,227.12,0.68]
[1759976261795,31.32,227.18,227.12,0.68]
[1759976262417,31.32,227.18,227.13,4.40276493]
[1759976262790,31.32,227.18,227.14,0.68]
[1759976262991,31.32,227.18,227.15,0.71]
[1759976263495,31.32,227.18,227.15,5.1123518]
[1759976263700,33.37078925,227.18,227.15,5.1123518]
[1759976264901,31.32,227.18,227.15,5.1123518]
[1759976265213,31.32,227.18,227.16,0.71]
[1759976265214,33.37078925,227.18,227.16,0.71]
[1759976265523,33.37078925,227.18,227.15,4.40237728]
[1759976265720,33.37078925,227.18,227.15,5.11237728]
[1759976265924,31.32,227.18,227.15,5.11237728]